bitfinex/quotes_SOLUSD_20251206
["timestamp","ask_amount","ask_price","bid_price","bid_amount"]
[1765031108618,3.28034265,133.29,133.24,7.50476896]
[1765031108819,3.28034265,133.29,133.27,0.71]
[1765031110434,110.5014357,133.31,133.27,0.71]
[1765031110643,5.12460543,133.3,133.27,0.71]
[1765031112639,108.12460543,133.31,133.27,8.21336165]
[1765031113016,5.12460543,133.3,133.28,0.66]
[1765031113233,103.0,133.31,133.28,0.66]
[1765031113422,5.12460543,133.3,133.28,0.66]
[1765031115622,103.0,133.31,133.28,0.66]
[1765031115817,5.12460543,133.3,133.28,0.66]
[1765031117435,110.50146069,133.31,133.28,0.66]
[1765031117436,115.62606612,133.31,133.28,0.66]
[1765031118345,5.12460543,133.3,133.28,0.66]
[1765031119534,115.62606612,133.31,133.28,0.66]
[1765031120950,110.50135844,133.31,133.28,0.66]
[1765031121129,115.62596387,133.31,133.28,0.66]
[1765031123853,5.12460543,133.3,133.28,0.66]
[1765031125354,110.50135844,133.31,133.27,7.50350755]
[1765031125355,5.12460543,133.29,133.27,8.16350755]
[1765031125844,110.71135844,133.31,133.24,8.32]
[1765031125845,5.12460543,133.28,133.24,8.32]
[1765031126048,5.12460543,133.28,133.27,0.66]
[1765031128133,15.82187546,133.3,133.27,0.66]
[1765031128335,5.12460543,133.28,133.27,0.66]
[1765031129761,12.837607,133.28,133.25,0.66]
[1765031129931,12.837607,133.28,133.21,0.66]
[1765031129932,5.12460543,133.26,133.21,0.66]
[1765031130255,5.12460543,133.22,133.21,0.66]
[1765031132473,5.12460543,133.22,133.21,8.16694392]
[1765031132662,5.12460543,133.23,133.21,8.16694392]
[1765031132976,5.12460543,133.23,133.22,0.66]
[1765031135857,7.50472128,133.25,133.22,0.66]
[1765031136164,5.12460543,133.23,133.22,0.66]
[1765031136861,5.12460543,133.23,133.2,7.50738344]
[1765031137066,5.12460543,133.23,133.21,0.66]
[1765031137664,15.82424456,133.26,133.21,8.16680465]
[1765031137855,5.12460543,133.24,133.22,0.66]
[1765031138270,5.12460543,133.23,133.22,0.66]
[1765031139987,5.12460543,133.24,133.22,0.66]
[1765031141085,15.82424456,133.26,133.22,0.66]
[1765031141599,15.82424456,133.26,133.22,13.29093232]
[1765031141600,13.44460543,133.26,133.22,13.29093232]
[1765031142066,13.44460543,133.26,133.23,0.7]
[1765031142266,5.12460543,133.26,133.23,0.7]
[1765031144689,5.12460543,133.25,133.23,0.7]
[1765031144885,5.12460543,133.24,133.18,35.08029931]
[1765031145184,5.12460543,133.24,133.22,0.7]
[1765031149117,7.50425406,133.26,133.22,8.20636581]
[1765031149421,12.62885949,133.26,133.22,8.20636581]
[1765031149590,5.12460543,133.25,133.23,0.7]
[1765031154005,7.50345603,133.28,133.23,8.20575293]
[1765031154214,5.12460543,133.28,133.23,13.33035836]
[1765031154392,5.12460543,133.28,133.24,0.67]
[1765031154705,110.50256859,133.29,133.24,0.67]
[1765031154706,5.12460543,133.27,133.24,0.67]
[1765031160409,5.12460543,133.27,133.24,8.1752413]
[1765031160612,12.62766644,133.28,133.25,0.67]
[1765031161219,5.12460543,133.28,133.25,0.67]
[1765031161913,5.12460543,133.27,133.25,0.67]
[1765031162420,5.12460543,133.26,133.22,30.70979384]
[1765031162628,5.12460543,133.25,133.23,0.67]
[1765031166224,12.62885347,133.26,133.23,0.67]
[1765031167046,5.12460543,133.26,133.23,8.17574409]
[1765031167333,8.32,133.27,133.23,8.17574409]
[1765031167632,5.12460543,133.26,133.24,0.67]
[1765031170529,15.8236586,133.27,133.24,0.67]
[1765031170841,5.12460543,133.26,133.24,0.67]
[1765031172310,3.28120421,133.26,133.24,0.67]
[1765031175336,3.28120421,133.25,133.23,0.72]
[1765031184640,7.50421075,133.26,133.23,0.72]
[1765031185032,3.28120421,133.25,133.23,0.72]
[1765031189540,3.28120421,133.24,133.22,9.25]
[1765031189739,3.28120421,133.24,133.22,0.72]
[1765031189932,3.28120421,133.24,133.23,0.72]
[1765031194236,3.28120421,133.24,133.22,0.72]
[1765031195056,3.28120421,133.24,133.21,8.32]
[1765031195235,3.28120421,133.24,133.21,9.04]
[1765031195435,3.28120421,133.24,133.21,16.54481611]
[1765031195635,3.28120421,133.24,133.22,0.72]
[1765031196956,3.28120421,133.23,133.22,0.72]
[1765031197160,3.28120421,133.23,133.2,0.72]
[1765031197363,3.28120421,133.22,133.21,0.72]
[1765031199460,3.28120421,133.23,133.21,0.72]
[1765031199758,3.28120421,133.23,133.19,7.50536367]
[1765031199759,3.28120421,133.22,133.19,7.50536367]
[1765031199957,3.28120421,133.21,133.19,0.67]
[1765031200265,3.28120421,133.21,133.2,0.67]
[1765031202163,3.28120421,133.21,133.19,0.67]
[1765031202844,10.78815366,133.21,133.19,0.67]
[1765031204958,3.28120421,133.2,133.19,0.67]
[1765031206559,3.28120421,133.2,133.18,0.67]
[1765031209363,7.50694945,133.21,133.18,0.67]
[1765031209566,3.28120421,133.2,133.18,0.67]
[1765031211468,3.28120421,133.19,133.17,7.50694945]
[1765031211660,3.28120421,133.19,133.18,0.65]
[1765031211853,7.71638042,133.22,133.18,0.65]
[1765031212057,3.28120421,133.2,133.18,0.65]
[1765031213273,3.28120421,133.19,133.18,0.65]
[1765031219956,130.57559264,133.23,133.18,0.65]
[1765031220157,3.28120421,133.21,133.18,0.65]
[1765031220556,3.28120421,133.21,133.18,23.19367837]
[1765031220756,3.28120421,133.21,133.19,0.65]
[1765031221286,3.28120421,133.2,133.19,0.65]
[1765031221785,3.28120421,133.2,133.18,0.65]
[1765031221961,3.28120421,133.19,133.17,0.65]
[1765031222365,3.28120421,133.18,133.17,0.65]
[1765031224677,3.28120421,133.19,133.17,0.65]
[1765031226785,7.50777673,133.2,133.17,0.65]
[1765031226984,15.8270799,133.21,133.17,0.65]
[1765031227170,3.28120421,133.2,133.17,0.65]
[1765031227372,3.28120421,133.2,133.17,23.19537256]
[1765031227675,15.8270799,133.21,133.18,0.65]
[1765031227868,3.28120421,133.19,133.18,0.65]
[1765031232378,5.13235163,133.19,133.18,0.65]
[1765031233197,8.32,133.21,133.18,0.65]
[1765031233402,5.13235163,133.21,133.18,8.15848575]
[1765031233778,5.13235163,133.21,133.19,0.71]
[1765031234601,36.22181818,158.18,133.19,8.21800938]
[1765031234602,103.21,133.26,133.19,8.21800938]
[1765031234796,5.13235163,133.23,133.19,8.21800938]
[1765031235001,5.13235163,133.23,133.2,0.71]
[1765031235180,5.13235163,133.23,133.2,23.25029076]
[1765031235382,5.13235163,133.23,133.21,0.71]
[1765031237110,5.13235163,133.24,133.21,0.71]
[1765031238740,16.03511017,133.25,133.21,8.21682764]
[1765031238741,8.32,133.25,133.21,8.21682764]
[1765031238957,13.45235163,133.25,133.21,8.21682764]
[1765031239253,13.45235163,133.25,133.22,0.71]
[1765031239254,8.32,133.25,133.22,0.71]
[1765031239424,13.45235163,133.25,133.22,0.71]
[1765031240949,5.13235163,133.24,133.22,0.71]
[1765031241107,5.13235163,133.23,133.21,0.71]
[1765031243659,5.13235163,133.24,133.21,8.21692417]
[1765031244037,5.13235163,133.24,133.22,0.71]
[1765031244238,5.13235163,133.25,133.22,0.71]
[1765031244657,5.13235163,133.24,133.22,23.24690418]
[1765031245055,5.13235163,133.24,133.23,0.71]
[1765031245365,5.13235163,133.24,133.22,23.24690418]
[1765031245666,5.13235163,133.24,133.23,0.71]
[1765031246155,5.13235163,133.25,133.23,0.71]
[1765031247070,5.13235163,133.24,133.23,0.71]
[1765031247847,5.13235163,133.24,133.22,23.24690418]
[1765031248052,5.13235163,133.23,133.22,0.71]
[1765031248361,5.13235163,133.24,133.23,0.71]
[1765031251665,5.13235163,133.25,133.23,0.71]
[1765031252069,108.13235163,133.26,133.23,0.71]
[1765031252458,5.13235163,133.25,133.23,0.71]
[1765031255960,5.13235163,133.25,133.22,30.75312525]
[1765031256149,5.13235163,133.25,133.23,0.71]
[1765031263788,8.3,133.27,133.23,13.34801489]
[1765031264082,8.3,133.27,133.23,8.21566326]
[1765031264083,13.43235163,133.27,133.23,8.21566326]
[1765031264379,5.13235163,133.27,133.24,17.008864]
[1765031264780,5.13235163,133.27,133.25,0.7]
[1765031270186,5.13235163,133.26,133.25,0.7]
[1765031270894,5.13235163,133.26,133.23,25.54566062]
[1765031271085,5.13235163,133.26,133.24,0.72]
[1765031273379,5.13235163,133.25,133.24,0.72]
[1765031273890,5.13235163,133.25,133.22,18.03994492]
[1765031274092,5.13235163,133.24,133.22,0.72]
[1765031274272,5.13235163,133.24,133.23,0.72]
[1765031275085,5.13235163,133.24,133.21,7.5069125]
[1765031275290,5.13235163,133.24,133.22,0.72]
[1765031280510,16.01423864,133.26,133.22,0.72]
[1765031280710,5.13235163,133.24,133.22,0.72]
[1765031281409,15.80423864,133.26,133.22,0.72]
[1765031281610,5.13235163,133.25,133.22,0.72]
[1765031281810,5.13235163,133.24,133.22,0.72]
[1765031286800,8.3,133.26,133.22,0.72]
[1765031287002,5.13235163,133.25,133.22,0.72]
[1765031288501,5.13235163,133.25,133.22,8.22638017]
[1765031288700,5.13235163,133.25,133.23,0.72]
[1765031291216,12.63716105,133.25,133.23,0.72]
[1765031293614,15.80428181,133.26,133.23,0.72]
[1765031293919,5.13235163,133.25,133.23,0.72]
[1765031294623,3.28178765,133.24,133.23,0.72]
[1765031295121,3.28178765,133.25,133.23,0.72]
[1765031301113,106.28178765,133.27,133.23,0.72]
[1765031301518,8.3,133.28,133.24,3.28178765]
[1765031301737,11.58178765,133.3,133.25,3.28178765]
[1765031301933,3.28178765,133.29,133.26,0.72]
[1765031302240,3.28178765,133.28,133.26,0.72]
[1765031305650,3.28178765,133.27,133.26,0.72]
[1765031310554,3.28178765,133.28,133.26,0.72]
[1765031310951,3.28178765,133.27,133.25,0.72]
[1765031311453,7.71272966,133.29,133.25,0.72]
[1765031311454,7.50272966,133.29,133.25,0.72]
[1765031311636,3.28178765,133.28,133.25,0.72]
[1765031313166,7.71272966,133.29,133.25,0.72]
[1765031313455,3.28178765,133.28,133.25,0.72]
[1765031315155,7.71272966,133.29,133.25,0.72]
[1765031315362,3.28178765,133.28,133.25,0.72]
[1765031316054,7.71272966,133.29,133.25,0.72]
[1765031316243,7.50272966,133.29,133.25,0.72]
[1765031316441,3.28178765,133.28,133.25,0.72]
[1765031317154,7.50272966,133.29,133.25,0.72]
[1765031317363,3.28178765,133.28,133.25,0.72]
[1765031318951,3.28178765,133.28,133.23,30.55633017]
[1765031318952,3.28178765,133.26,133.23,16.01565953]
[1765031319136,3.28178765,133.27,133.25,0.7]
[1765031320348,3.28178765,133.26,133.25,0.7]
[1765031320661,3.49178765,133.26,133.23,0.7]
[1765031320861,3.28178765,133.24,133.23,0.7]
[1765031321640,7.5041803,133.26,133.23,0.7]
[1765031321965,16.52412522,133.26,133.23,0.7]
[1765031324064,16.31412522,133.26,133.23,0.7]
[1765031324566,9.01994492,133.25,133.22,0.7]
[1765031324766,8.80994492,133.25,133.21,0.7]
[1765031325342,8.80994492,133.25,133.21,8.20675037]
[1765031325764,8.80994492,133.25,133.22,0.7]
[1765031326968,7.5041803,133.26,133.22,8.20637706]
[1765031327153,3.28178765,133.25,133.22,8.20637706]
[1765031327353,3.28178765,133.24,133.23,0.7]
[1765031331368,16.31412522,133.26,133.23,8.205817]
[1765031331369,3.28178765,133.25,133.23,8.205817]
[1765031331546,12.09173257,133.26,133.24,0.72]
[1765031331751,8.80994492,133.26,133.24,0.72]
[1765031331952,12.09173257,133.26,133.24,0.72]
[1765031332358,103.0,133.27,133.24,0.72]
[1765031332557,3.28178765,133.27,133.24,0.72]
[1765031332763,9.01994492,133.29,133.24,0.72]
[1765031332951,3.28178765,133.27,133.24,0.72]
[1765031333459,3.28178765,133.28,133.25,7.50469043]
[1765031333777,3.28178765,133.28,133.26,0.72]
[1765031339989,3.28178765,133.27,133.26,0.72]
[1765031341775,3.28178765,133.27,133.24,0.72]
[1765031341984,3.28178765,133.25,133.23,0.72]
[1765031342598,16.01357742,133.27,133.23,0.72]
[1765031344695,3.28178765,133.25,133.23,0.72]
[1765031345894,3.28178765,133.24,133.23,0.72]
[1765031347290,3.28178765,133.25,133.23,0.72]
[1765031348277,7.5041684,133.26,133.23,0.72]
[1765031348479,3.28178765,133.26,133.23,0.72]
[1765031349694,3.28178765,133.26,133.23,8.22572713]
[1765031349894,3.28178765,133.26,133.23,0.72]
[1765031350096,3.28178765,133.26,133.24,0.7]
[1765031350377,118.80368266,133.27,133.24,0.7]
[1765031350582,3.28178765,133.26,133.24,0.7]
[1765031352294,118.80368266,133.27,133.24,0.7]
[1765031352607,3.28178765,133.26,133.24,0.7]
[1765031354197,3.28178765,133.25,133.24,0.7]
[1765031354398,5.12750055,133.25,133.24,0.7]
[1765031355501,5.12750055,133.25,133.22,7.50626888]
[1765031355502,5.12750055,133.25,133.22,0.7]
[1765031355712,5.12750055,133.24,133.23,0.7]
[1765031357903,5.12750055,133.24,133.22,0.7]
[1765031358304,16.31422617,133.26,133.22,0.7]
[1765031358504,5.12750055,133.24,133.22,0.7]
[1765031359508,16.31422617,133.26,133.22,0.7]
[1765031359509,5.12750055,133.25,133.22,0.7]
[1765031363024,5.12750055,133.26,133.22,8.2062253]
[1765031363200,5.12750055,133.26,133.23,0.7]
[1765031363405,5.12750055,133.25,133.23,0.7]
[1765031364923,116.40750055,133.27,133.23,8.20565872]
[1765031365432,5.12750055,133.26,133.24,0.7]
[1765031367309,13.40750055,133.27,133.24,8.2050339]
[1765031367930,13.40750055,133.27,133.24,0.7]
[1765031367931,5.12750055,133.25,133.24,0.7]
[1765031368110,5.12750055,133.25,133.23,7.50574155]
[1765031368314,5.12750055,133.25,133.22,7.50638042]
[1765031368509,5.12750055,133.25,133.22,8.20638042]
[1765031368726,5.12750055,133.25,133.23,0.7]
[1765031370234,5.12750055,133.25,133.23,8.20569107]
[1765031370535,5.12750055,133.26,133.23,8.20569107]
[1765031370831,5.12750055,133.26,133.24,0.7]
[1765031372115,5.12750055,133.25,133.24,0.7]
[1765031374942,5.12750055,133.26,133.24,0.2]
[1765031375333,5.83750055,133.25,133.21,15.01262783]
[1765031375520,5.12750055,133.26,133.21,12.63438683]
[1765031376343,5.12750055,133.26,133.21,20.91438683]
[1765031376640,0.71,133.31,133.24,21.43636455]
[1765031376838,0.71,133.31,133.25,5.12750055]
[1765031377019,5.12750055,133.29,133.26,0.7]
[1765031377529,5.12750055,133.3,133.26,0.7]
[1765031377724,12.62943937,133.3,133.26,0.7]
[1765031377922,7.50193882,133.3,133.26,0.7]
[1765031378119,12.62943937,133.3,133.26,0.7]
[1765031378914,5.12750055,133.31,133.26,13.33156099]
[1765031379148,5.83750055,133.31,133.26,8.20406044]
[1765031379444,5.12750055,133.31,133.27,0.72]
[1765031380040,5.83750055,133.31,133.27,0.72]
[1765031380833,5.12750055,133.3,133.27,0.72]
[1765031381151,0.71,133.31,133.27,0.72]
[1765031381351,5.12750055,133.3,133.27,0.72]
[1765031382229,0.71,133.31,133.27,0.72]
[1765031382433,5.12750055,133.3,133.27,0.72]
[1765031383630,5.12750055,133.3,133.27,8.22345578]
[1765031384526,5.12750055,133.3,133.28,0.72]
[1765031384941,5.83750055,133.3,133.27,8.22345578]
[1765031385144,8.28,133.32,133.28,13.35038304]
[1765031385323,8.28,133.32,133.28,8.22288249]
[1765031385324,13.40750055,133.32,133.28,8.22288249]
[1765031385520,5.12750055,133.31,133.29,0.72]
[1765031385743,5.12750055,133.3,133.27,7.50342762]
[1765031385943,5.12750055,133.3,133.28,0.72]
[1765031387542,15.78084282,133.32,133.28,0.72]
[1765031387747,5.12750055,133.31,133.28,8.22277496]
[1765031388236,5.12750055,133.31,133.29,0.72]
[1765031389254,5.12750055,133.31,133.27,7.50356419]
[1765031389560,5.12750055,133.3,133.28,0.72]
[1765031391135,0.71,133.31,133.28,0.72]
[1765031391334,5.12750055,133.3,133.28,0.72]
[1765031392054,5.12750055,133.31,133.28,8.22290378]
[1765031392250,13.40750055,133.32,133.28,8.22290378]
[1765031392576,14.11750055,133.32,133.29,0.72]
[1765031393873,5.12750055,133.31,133.29,0.72]
[1765031394877,8.99,133.32,133.29,0.72]
[1765031395178,5.12750055,133.31,133.29,0.72]
[1765031395343,8.99,133.32,133.29,0.72]
[1765031395544,5.12750055,133.31,133.29,0.72]
[1765031398871,5.12750055,133.31,133.28,7.50290378]
[1765031399062,5.83750055,133.31,133.28,8.22290378]
[1765031399263,5.12750055,133.31,133.29,0.72]
[1765031399554,5.83750055,133.31,133.28,8.22290378]
[1765031399762,5.83750055,133.31,133.29,0.72]
[1765031399953,5.12750055,133.31,133.29,0.72]
[1765031400470,5.12750055,133.3,133.29,0.72]
[1765031400773,5.12750055,133.3,133.27,7.5034674]
[1765031400978,5.12750055,133.3,133.29,0.72]
[1765031401154,5.12750055,133.3,133.28,0.72]
[1765031402473,14.11750055,133.29,133.23,0.72]
[1765031402776,5.12750055,133.25,133.24,0.72]
[1765031403576,5.83750055,133.25,133.21,9.0]
[1765031403779,5.12750055,133.24,133.22,0.72]
[1765031405165,5.83750055,133.23,133.19,8.22753464]
[1765031405365,5.12750055,133.21,133.19,8.22753464]
[1765031405673,108.12750055,133.26,133.2,30.43636455]
[1765031405874,19.46350796,133.31,133.2,25.308864]
[1765031406077,5.12750055,133.3,133.25,5.12750055]
[1765031406460,5.12750055,133.3,133.26,0.72]
[1765031406868,5.12750055,133.3,133.26,5.84750055]
[1765031407080,13.40750055,133.31,133.27,15.78341597]
[1765031407382,5.12750055,133.3,133.27,16.50341597]
[1765031407568,5.12750055,133.3,133.28,0.72]
[1765031410386,5.12750055,133.31,133.28,0.72]
[1765031412692,5.12750055,133.31,133.28,8.22298224]
[1765031413066,5.12750055,133.31,133.29,0.65]
[1765031413684,7.50091169,133.32,133.29,0.65]
[1765031413685,5.12750055,133.32,133.29,0.65]
[1765031414088,5.12750055,133.32,133.29,14.05750055]
[1765031414271,5.12750055,133.32,133.3,0.65]
[1765031414590,5.12750055,133.31,133.29,0.65]
[1765031415086,15.78029176,133.33,133.29,0.65]
[1765031415279,5.12750055,133.31,133.29,0.65]
[1765031415486,5.12750055,133.3,133.28,0.65]
[1765031416379,3.27915076,133.3,133.28,0.65]
[1765031416988,3.97915076,133.29,133.26,0.65]
[1765031417292,3.27915076,133.29,133.26,0.65]
[1765031418100,3.27915076,133.29,133.26,8.15409289]
[1765031418279,3.27915076,133.31,133.28,7.50297315]
[1765031418692,110.50079307,133.32,133.29,0.65]
[1765031418893,3.27915076,133.31,133.29,0.65]
[1765031423502,110.50079307,133.32,133.29,0.65]
[1765031423804,3.27915076,133.31,133.29,0.65]
[1765031425302,110.50079307,133.32,133.29,0.65]
[1765031425489,3.27915076,133.31,133.29,0.65]
[1765031429600,11.4805207,133.31,133.27,15.65544504]
[1765031429780,3.27915076,133.3,133.28,0.65]
[1765031429980,11.4805207,133.31,133.28,0.65]
[1765031430788,10.7805207,133.31,133.28,0.65]
[1765031431182,3.27915076,133.31,133.28,0.65]
[1765031431380,114.47999917,133.32,133.28,8.15289676]
[1765031431582,111.20084841,133.32,133.28,8.15289676]
[1765031431797,113.77999917,133.32,133.29,0.65]
[1765031432006,114.47999917,133.32,133.29,0.65]
[1765031432308,113.77999917,133.32,133.29,0.65]
[1765031432610,114.47999917,133.32,133.29,0.65]
[1765031433210,113.77999917,133.32,133.29,0.65]
[1765031433384,110.50084841,133.32,133.29,0.65]
[1765031433580,113.77999917,133.32,133.29,0.65]
[1765031434091,7.59940884,133.35,133.3,10.78102622]
[1765031434405,3.27915076,133.34,133.3,10.78102622]
[1765031434603,3.97915076,133.34,133.31,0.65]
[1765031435205,9.08,133.35,133.31,8.15123625]
[1765031435390,3.27915076,133.34,133.31,8.15123625]
[1765031435594,3.27915076,133.34,133.32,0.65]
[1765031435994,3.27915076,133.34,133.31,7.50123625]
[1765031436195,3.27915076,133.34,133.31,8.15123625]
[1765031436395,3.27915076,133.34,133.31,7.50123625]
[1765031436591,9.08,133.35,133.32,8.15067663]
[1765031436592,0.1,133.35,133.32,8.15067663]
[1765031436905,0.1,133.35,133.32,11.42982739]
[1765031437113,0.1,133.35,133.33,0.65]
[1765031437697,0.1,133.35,133.33,8.15009653]
[1765031437891,0.1,133.35,133.33,7.50009653]
[1765031438094,0.1,133.35,133.34,0.65]
[1765031439394,0.1,133.35,133.34,8.14962501]
[1765031440327,0.1,133.35,133.34,0.65]
[1765031442097,0.1,133.35,133.34,11.42877577]
[1765031442501,0.1,133.35,133.34,14.43076458]
[1765031443094,0.1,133.35,133.34,11.15161382]
[1765031444218,0.1,133.35,133.34,14.43076458]
[1765031447608,0.1,133.35,133.34,23.2407095]
[1765031449031,0.1,133.35,133.34,14.43076458]
[1765031450510,0.1,133.36,133.35,8.80994492]
[1765031450708,1e-08,133.36,133.35,21.07909568]
[1765031451029,1e-08,133.36,133.35,24.35824644]
[1765031451208,1e-08,133.36,133.35,27.35910918]
[1765031452945,1e-08,133.36,133.35,34.85817179]
[1765031454333,1e-08,133.36,133.35,34.83817179]
[1765031457834,1e-08,133.36,133.35,26.57817179]
[1765031458321,1e-08,133.36,133.35,34.83817179]
[1765031459815,1e-08,133.36,133.35,26.57817179]
[1765031460016,0.1,133.37,133.35,44.67562407]
[1765031460216,0.1,133.37,133.36,12.25915076]
[1765031460417,1e-08,133.37,133.36,21.06909568]
[1765031460648,0.1,133.39,133.38,16.308864]
[1765031460811,0.1,133.39,133.38,27.84801476]
[1765031461019,0.1,133.39,133.38,28.56801476]
[1765031461319,0.1,133.39,133.38,25.288864]
[1765031461523,0.1,133.39,133.38,28.56801476]
[1765031462119,0.1,133.39,133.38,36.06539067]
[1765031462417,0.1,133.39,133.38,39.0660283]
[1765031464946,0.1,133.39,133.38,27.52687754]
[1765031465120,0.1,133.39,133.38,39.0660283]
[1765031465316,0.1,133.39,133.38,26.80687754]
[1765031465548,0.1,133.39,133.38,32.78623991]
[1765031465727,0.1,133.39,133.38,36.16539067]
[1765031465928,0.1,133.39,133.38,39.44454143]
[1765031466639,0.1,133.4,133.39,8.80994492]
[1765031466830,1e-08,133.41,133.4,25.83880892]
[1765031467155,1e-08,133.41,133.4,42.34468597]
[1765031467450,1e-08,133.41,133.4,45.62383673]
[1765031467633,1e-08,133.41,133.4,48.62379923]
[1765031469056,0.1,133.45,133.41,9.51994492]
[1765031469240,0.1,133.45,133.44,3.27915076]
[1765031469556,0.1,133.45,133.44,11.53915076]
[1765031470063,0.1,133.45,133.44,19.03315555]
[1765031470265,0.1,133.45,133.44,19.74315555]
[1765031470439,0.1,133.45,133.44,22.74266812]
[1765031470839,0.1,133.45,133.44,22.03266812]
[1765031472156,0.1,133.45,133.44,22.74266812]
[1765031472670,0.1,133.49,133.46,16.308864]
[1765031472863,0.1,133.49,133.48,3.27915076]
[1765031473440,0.1,133.49,133.48,3.37915076]
[1765031473747,0.1,133.49,133.48,3.27915076]
[1765031474158,0.1,133.49,133.47,19.68801476]
[1765031474459,0.75,133.49,133.47,31.22716552]
[1765031474662,0.75,133.49,133.48,7.49175906]
[1765031475873,0.75,133.49,133.47,19.13134333]
[1765031476087,0.75,133.49,133.47,7.49219257]
[1765031477753,0.1,133.49,133.47,10.77134333]
[1765031478302,0.1,133.49,133.48,3.27915076]
[1765031478455,0.1,133.49,133.48,5.10706947]
[1765031479184,0.1,133.49,133.48,5.81706947]
[1765031479858,0.1,133.49,133.48,17.705898]
[1765031480058,0.1,133.49,133.48,12.59882853]
[1765031480247,0.1,133.49,133.48,21.56882853]
[1765031480465,0.1,133.49,133.48,24.56766648]
[1765031480651,0.1,133.49,133.48,33.3776114]
[1765031480862,0.1,133.53,133.49,8.80994492]
[1765031481062,0.1,133.53,133.52,5.10706947]
[1765031481260,0.1,133.53,133.52,13.36706947]
[1765031481585,0.1,133.53,133.52,14.07706947]
[1765031481786,0.1,133.53,133.52,29.05291232]
[1765031485178,0.1,133.56,133.53,8.80994492]
[1765031485386,0.1,133.56,133.55,12.59490174]
[1765031485568,0.1,133.56,133.55,13.30490174]
[1765031487291,0.1,133.56,133.55,38.42371066]
[1765031488884,0.1,133.56,133.55,37.16376574]
[1765031489397,0.1,133.56,133.55,12.59490174]
[1765031489596,0.1,133.56,133.54,12.59538246]
[1765031489898,0.75,133.56,133.54,7.48831299]
[1765031490064,0.1,133.56,133.55,12.59490174]
[1765031490269,0.1,133.56,133.55,16.45783227]
[1765031490476,0.1,133.56,133.55,21.56490174]
[1765031491211,0.1,133.56,133.54,12.59539963]
[1765031491389,0.1,133.56,133.54,20.85539963]
[1765031491588,0.75,133.56,133.54,8.26]
[1765031492482,0.75,133.56,133.53,20.85590545]
[1765031492709,0.75,133.56,133.54,5.10706947]
[1765031492892,0.75,133.56,133.53,5.10706947]
[1765031493414,0.75,133.56,133.54,12.59545747]
[1765031493415,0.1,133.56,133.54,12.59545747]
[1765031493611,0.1,133.56,133.54,20.85545747]
[1765031493784,0.1,133.56,133.54,21.56545747]
[1765031494504,0.1,133.56,133.54,20.85545747]
[1765031494707,0.1,133.56,133.55,5.10706947]
[1765031495491,0.1,133.56,133.55,17.70197121]
[1765031496703,0.1,133.56,133.55,18.41197121]
[1765031497685,0.1,133.56,133.55,27.22191613]
[1765031498587,0.1,133.56,133.55,21.56490174]
[1765031498888,0.1,133.56,133.55,26.67197121]
[1765031499203,0.1,133.56,133.55,35.48191613]
[1765031500714,0.1,133.56,133.55,26.67197121]
[1765031501216,0.1,133.56,133.55,12.59490174]
[1765031501391,0.1,133.56,133.55,25.96197121]
[1765031502408,0.1,133.56,133.55,26.64197121]
[1765031505014,0.1,133.56,133.55,35.45191613]
[1765031512214,1e-08,133.56,133.55,40.5589856]
[1765031512533,0.71,133.62,133.58,16.308864]
[1765031512733,0.71,133.62,133.6,5.10706947]
[1765031513318,0.1,133.63,133.6,10.21413894]
[1765031513526,0.81,133.63,133.6,10.21413894]
[1765031513731,0.81,133.63,133.61,5.10706947]
[1765031513919,0.81,133.63,133.61,12.68929775]
[1765031514233,0.1,133.63,133.62,7.48390959]
[1765031514625,0.1,133.63,133.62,12.59097906]
[1765031514821,0.81,133.63,133.62,7.48390959]
[1765031515024,0.1,133.63,133.62,7.48390959]